bitfinex-derivatives/quotes_ETHF0:USTF0_20250524
["timestamp","ask_amount","ask_price","bid_price","bid_amount"]
[1748061499272,17.61,2555.4,2555.3,1.47347]
[1748061502682,15.95641,2555.5,2555.3,0.691]
[1748061502683,17.61,2555.5,2555.3,0.691]
[1748061502880,17.61,2555.5,2555.4,0.78243]
[1748061506782,15.174,2555.6,2555.5,0.7824]
[1748061507184,32.784,2555.6,2555.5,0.7824]
[1748061507377,15.173,2555.8,2555.7,0.78234]
[1748061507786,32.783,2555.8,2555.7,0.78234]
[1748061508090,15.173,2555.8,2555.7,1.47524]
[1748061508284,32.783,2555.8,2555.7,1.47524]
[1748061508781,32.782,2555.8,2555.7,1.47524]
[1748061512792,0.0058797,2555.9,2555.8,0.78231]
[1748061512992,0.0058797,2555.9,2555.8,3.99011]
[1748061513194,0.0058797,2555.9,2555.8,8.99011]
[1748061513588,0.0058797,2555.9,2555.8,10.41709212]
[1748061514686,0.97460028,2556.2,2555.8,26.76151212]
[1748061514990,0.00908087,2556.9,2556.5,1.95525]
[1748061514991,1e-08,2556.9,2556.5,1.95525]
[1748061515188,1.95065287,2557.3,2557.2,0.78188]
[1748061516288,7.83465104,2557.5,2557.3,0.78184]
[1748061516493,7.83465104,2557.5,2557.4,2.17362]
[1748061517689,7.83465104,2557.5,2557.4,1.3918]
[1748061517891,1.31896797,2557.5,2557.4,2.17362]
[1748061518186,0.00586797,2557.5,2557.4,2.17362]
[1748061518394,0.00586797,2557.5,2557.4,5.38142]
[1748061518586,0.00586797,2557.5,2557.4,4.5996]
[1748061518787,2.94640642,2558.4,2557.4,26.72216]
[1748061518994,2.15655,2558.3,2557.9,0.78167]
[1748061519494,17.603,2558.2,2557.9,0.78167]
[1748061519697,17.60885233,2558.2,2557.8,0.78169]
[1748061519884,3.99402793,2558.1,2557.9,1.4016]
[1748061521288,4.77565793,2558.1,2557.9,1.4016]
[1748061521482,3.99402793,2558.1,2557.9,1.4016]
[1748061521889,3.99402793,2558.1,2557.9,2.18327]
[1748061522192,3.99402793,2558.1,2557.9,1.4016]
[1748061522491,4.77565793,2558.1,2557.9,1.4016]
[1748061523893,2.15663,2558.1,2557.9,1.4016]
[1748061524390,0.78164,2558.0,2557.9,1.4016]
[1748061524694,2.13344,2558.0,2557.9,1.4016]
[1748061524896,1.3518,2558.0,2557.9,1.4016]
[1748061525197,1.3518,2558.0,2557.9,2.18327]
[1748061526002,0.00585233,2558.2,2557.9,1.4016]
[1748061526191,0.00585233,2558.2,2557.9,2.18325]
[1748061526192,2.06265233,2558.2,2557.9,2.18325]
[1748061526702,0.78745233,2558.2,2557.9,2.18325]
[1748061526998,0.78164,2558.0,2557.9,1.4016]
[1748061527900,0.78164,2558.0,2557.8,0.78169]
[1748061528093,1.3231,2557.9,2557.8,2.15349]
[1748061528293,1.3231,2557.9,2557.8,1.3718]
[1748061528601,1.3231,2557.9,2557.8,2.1535]
[1748061528602,2.6264,2557.9,2557.8,2.1535]
[1748061529004,3.40807,2557.9,2557.8,1.3718]
[1748061529305,2.6264,2557.9,2557.8,1.3718]
[1748061529503,2.6264,2557.9,2557.7,3.98952]
[1748061530005,2.6264,2557.9,2557.8,0.7817]
[1748061530804,2.6264,2557.9,2557.7,3.98951]
[1748061531005,3.40807,2557.9,2557.7,3.98951]
[1748061531207,3.40808,2557.9,2557.7,3.98953]
[1748061532005,3.415816,2557.9,2557.7,3.98953]
[1748061532207,0.7817,2557.8,2557.7,3.2078]
[1748061532509,2.1561,2557.8,2557.7,3.2078]
[1748061534409,1.3744,2557.8,2557.7,3.2078]
[1748061534704,2.1561,2557.8,2557.7,3.2078]
[1748061534904,1.3744,2557.8,2557.7,3.2078]
[1748061535108,2.1561,2557.8,2557.7,3.2078]
[1748061535508,1.3744,2557.8,2557.7,3.98953]
[1748061536011,2.1561,2557.8,2557.7,3.2078]
[1748061538610,2.1561,2557.8,2557.7,3.98953]
[1748061538910,2.1561,2557.8,2557.7,3.2078]
[1748061539308,1.3744,2557.8,2557.7,3.98953]
[1748061539804,2.1561,2557.8,2557.7,3.2078]
[1748061540210,1.3744,2557.8,2557.7,3.98953]
[1748061540511,2.1561,2557.8,2557.7,3.2078]
[1748061540709,1.3744,2557.8,2557.7,3.98953]
[1748061541010,2.1561,2557.8,2557.7,3.98953]
[1748061541210,1.3744,2557.8,2557.7,3.98953]
[1748061541815,2.1561,2557.8,2557.7,3.2078]
[1748061542609,1.3744,2557.8,2557.7,3.2078]
[1748061542808,2.1561,2557.8,2557.7,3.2078]
[1748061543013,2.1561,2557.8,2557.7,3.98953]
[1748061543313,2.1561,2557.8,2557.7,3.2078]
[1748061543514,3.32869,2557.8,2557.3,1.16103179]
[1748061543711,0.7818,2557.5,2557.3,1.94286179]
[1748061544011,0.78182,2557.4,2557.3,2.53643179]
[1748061544208,2.84932,2557.4,2557.3,2.53643179]
[1748061544605,2.0675,2557.4,2557.3,3.61545176]
[1748061544908,2.0675,2557.4,2557.3,2.83360176]
[1748061546110,2.7053,2557.4,2557.3,3.61545176]
[1748061546310,2.7053,2557.4,2557.3,4.77648355]
[1748061546708,2.7053,2557.4,2557.3,3.99463355]
[1748061547210,3.48712,2557.4,2557.3,3.99463355]
[1748061548108,0.7044,2557.4,2557.3,4.77648355]
[1748061548413,17.594,2557.6,2557.5,0.78177]
[1748061549209,17.594,2557.6,2557.5,1.43617]
[1748061549411,16.26172,2557.8,2557.6,0.78176]
[1748061549711,17.594,2557.7,2557.6,2.82546]
[1748061550104,18.37573,2557.7,2557.6,2.0437]
[1748061550712,0.78173,2557.7,2557.6,2.0437]
[1748061551113,0.78173,2557.7,2557.6,3.50190176]
[1748061551513,33.85572,2557.8,2557.6,4.28366176]
[1748061551813,4.5006016,2559.6,2557.9,3.90825]
[1748061552001,1.2928016,2559.6,2559.1,3.2078]
[1748061552213,1.3486,2559.5,2559.1,3.2078]
[1748061552513,19.5983,2559.5,2559.1,3.2078]
[1748061552817,0.78124,2559.4,2559.1,3.2078]
[1748061553006,16.7056,2559.3,2559.1,4.5826]
[1748061553512,17.48686,2559.3,2559.1,1.3748]
[1748061553715,17.48686,2559.3,2559.2,1.45820176]
[1748061553916,2.12986,2559.3,2559.2,1.45820176]
[1748061554117,35.07486,2559.3,2559.2,1.45820176]
[1748061554507,2.12986,2559.3,2559.2,1.45820176]
[1748061554708,35.07486,2559.3,2559.2,1.45820176]
[1748061555008,0.78127,2559.2,2559.0,0.78718797]
[1748061555207,1.3342,2559.1,2559.0,0.00586797]
[1748061555406,2.1155,2559.1,2559.0,0.00586797]
[1748061556008,1.3342,2559.1,2559.0,0.78720797]
[1748061556214,17.591,2559.5,2559.1,0.78129]
[1748061556408,2.11544,2559.4,2559.1,2.07749]
[1748061556609,2.11544,2559.4,2559.2,1.2962]
[1748061556914,18.37124,2559.3,2559.2,1.2962]
[1748061557413,0.78129,2559.2,2559.0,0.00586797]
[1748061557715,17.46849,2559.2,2559.0,0.78719797]
[1748061558115,17.46849,2559.2,2559.1,1.2962]
[1748061558318,16.6872,2559.2,2559.1,1.2962]
[1748061558507,1.3342,2559.2,2559.1,1.2962]
[1748061558711,4.2832172,2560.0,2559.5,0.78117]
[1748061558910,4.2832172,2560.0,2559.6,1.2995]
[1748061559214,1.2815,2559.9,2559.6,1.2995]
[1748061559418,3.98892,2559.7,2559.6,1.2995]
[1748061559805,19.33992,2559.7,2559.6,1.2995]
[1748061560014,0.78117,2559.6,2559.4,0.78121]
[1748061560217,18.8695,2559.6,2559.5,0.78118]
[1748061560816,18.8695,2559.6,2559.4,0.7812]
[1748061561115,18.8695,2559.6,2559.3,1.2995]
[1748061561319,18.8695,2559.6,2559.3,2.08073]
[1748061561714,2.06266,2559.6,2559.4,0.78121]
[1748061561914,33.72016,2559.6,2559.5,1.3826]
[1748061563014,35.00336,2559.6,2559.5,1.3826]
[1748061563216,0.78124,2559.3,2559.2,1.3731]
[1748061563418,0.78124,2559.3,2559.2,2.7557]
[1748061563621,34.2222,2559.6,2559.2,3.53697]
[1748061563622,0.78124,2559.4,2559.2,3.53697]
[1748061563813,0.78124,2559.4,2559.3,1.3826]
[1748061568720,0.78127,2559.2,2559.1,3.2078]
[1748061569020,16.12927,2559.2,2559.1,3.2078]
[1748061569516,17.44527,2559.2,2559.1,3.2078]
[1748061569713,22.44527,2559.2,2559.1,3.2078]
[1748061572423,0.78152,2558.4,2558.3,1.2886]
[1748061574722,0.78152,2558.4,2558.3,2.07015]
[1748061575023,0.78152,2558.4,2558.3,1.2886]
[1748061575218,0.78152,2558.4,2558.3,2.07015]
[1748061575415,0.78152,2558.4,2558.3,1.2886]
[1748061576119,2.08512,2558.4,2558.3,1.2886]
[1748061576719,0.78158,2558.2,2558.1,0.00586797]
[1748061577020,18.36858,2558.2,2558.1,0.00586797]
[1748061577220,18.36858,2558.2,2558.1,1.39376797]
[1748061577420,18.36858,2558.2,2558.1,2.17537797]
[1748061577620,18.36858,2558.2,2558.1,1.39376797]
[1748061578018,18.36858,2558.2,2558.1,2.17537797]
[1748061578323,18.36858,2558.2,2558.1,1.39376797]
[1748061581521,3.2078,2558.4,2558.3,0.78155]
[1748061582021,3.2078,2558.4,2558.2,1.47946]
[1748061582228,3.98932,2558.4,2558.3,1.4114]
[1748061582725,5.37412,2558.4,2558.3,1.4114]
[1748061583117,5.37414,2558.4,2558.2,0.6979]
[1748061583317,4.5926,2558.4,2558.3,1.2778]
[1748061583814,4.5926,2558.4,2558.2,1.47947]
[1748061584020,4.5926,2558.4,2558.3,0.78155]
[1748061584220,22.1816,2558.4,2558.3,0.78155]
[1748061584421,22.1816,2558.4,2558.3,2.05935]
[1748061584720,22.96312,2558.4,2558.3,2.05935]
[1748061585527,22.1816,2558.4,2558.3,2.05935]
[1748061585728,22.96312,2558.4,2558.3,2.05935]
[1748061586123,22.96312,2558.4,2558.3,1.2778]
[1748061586928,22.96312,2558.4,2558.3,2.05935]
[1748061587732,22.96312,2558.4,2558.3,1.2778]
[1748061588129,0.78155,2558.3,2558.2,0.6979]
[1748061588323,1.3915,2558.3,2558.1,0.00586797]
[1748061588527,2.17307,2558.3,2558.2,0.78158]
[1748061588823,17.589,2558.3,2558.2,0.78155]
[1748061589126,18.37055,2558.3,2558.2,0.78155]
[1748061589528,17.589,2558.3,2558.2,0.78155]
[1748061590226,18.37055,2558.3,2558.2,0.78155]
[1748061590928,18.37055,2558.3,2558.1,2.16806797]
[1748061591629,18.37055,2558.3,2558.2,1.3806]
[1748061595829,17.589,2558.3,2558.2,2.16218]
[1748061596130,5.30414,2558.4,2558.2,2.16218]
[1748061596429,33.619,2558.3,2558.2,2.16216]
[1748061596633,33.619,2558.3,2558.2,0.78156]
[1748061596830,34.40055,2558.3,2558.2,0.78156]
[1748061597233,33.619,2558.3,2558.2,0.78156]
[1748061598533,34.40055,2558.3,2558.2,0.78156]
[1748061598733,36.37685,2558.3,2558.2,0.78158]
[1748061599623,36.37685,2558.3,2558.1,0.78745797]
[1748061599624,0.78158,2558.2,2558.1,0.78745797]
[1748061599928,35.09157,2558.3,2558.2,0.78158]
[1748061600631,0.78158,2558.2,2558.1,0.00586797]
[1748061601934,34.40158,2558.2,2558.1,0.00586797]
[1748061603636,0.78175,2557.7,2557.6,0.78176]
[1748061603838,16.029,2557.7,2557.6,0.78176]
[1748061604333,16.81073,2557.7,2557.6,0.78176]
[1748061604837,0.78177,2557.6,2557.5,0.78178]
[1748061605030,18.37377,2557.6,2557.5,0.78178]
[1748061606032,0.78179,2557.5,2557.4,3.21366797]
[1748061608140,0.78179,2557.5,2557.4,4.68117157]
[1748061608450,18.37378,2557.6,2557.4,4.68117157]
[1748061608739,0.78179,2557.5,2557.4,5.46297157]
[1748061608939,34.40579,2557.5,2557.4,4.68117157]
[1748061609137,34.40579,2557.5,2557.4,5.46299157]
[1748061609534,34.40579,2557.5,2557.4,3.99548797]
[1748061609736,0.78177,2557.6,2557.5,0.78179]
[1748061609929,33.624,2557.6,2557.5,0.78179]
[1748061610134,33.624,2557.6,2557.4,3.99547797]
[1748061610442,16.031,2557.6,2557.5,0.78179]
[1748061610944,33.624,2557.6,2557.5,0.78179]
[1748061611745,34.40576,2557.6,2557.5,0.78179]
[1748061611939,0.78179,2557.5,2557.4,3.99547797]
[1748061612139,33.624,2557.6,2557.4,3.99547797]
[1748061612535,0.78179,2557.5,2557.4,3.21366797]
[1748061613945,0.78179,2557.5,2557.4,0.00586797]
[1748061614447,2.15379,2557.5,2557.4,0.00586797]
[1748061614748,2.15379,2557.5,2557.0,1.16103179]
[1748061614749,0.78192,2557.1,2557.0,1.16103179]
[1748061615047,19.78572,2557.1,2557.0,2.54403179]
[1748061615543,16.57792,2557.1,2557.0,2.54403179]
[1748061615848,16.57792,2557.1,2557.0,1.383]
[1748061616849,16.57792,2557.1,2557.0,2.16495]
[1748061617948,15.796,2557.1,2557.0,2.16495]
[1748061619151,16.57792,2557.1,2557.0,1.383]
[1748061619754,34.17692,2557.1,2557.0,1.383]
[1748061620853,3.2078,2557.4,2557.0,1.383]
[1748061621152,19.0058,2557.4,2557.3,0.78185]
[1748061621354,37.38462,2557.4,2557.3,0.78185]
[1748061621946,37.38462,2557.4,2557.2,0.6697]
[1748061622154,3.98962,2557.4,2557.3,2.84665]
[1748061622454,3.98962,2557.4,2557.3,2.0648]
[1748061622455,37.38462,2557.4,2557.3,2.0648]
[1748061623156,3.2078,2557.4,2557.3,2.0648]
[1748061623456,37.38462,2557.4,2557.3,2.0648]
[1748061623957,37.38462,2557.4,2557.3,2.84665]
[1748061624261,36.6028,2557.4,2557.3,2.84665]
[1748061624555,37.38462,2557.4,2557.3,2.0648]
[1748061625751,37.38462,2557.4,2557.3,1.4036]
[1748061626555,36.6028,2557.4,2557.3,2.18545]
[1748061626755,37.38462,2557.4,2557.3,1.4036]
[1748061627259,37.38462,2557.4,2557.3,2.18545]
[1748061627659,37.38462,2557.4,2557.3,1.4036]
[1748061630167,0.7819,2557.2,2556.9,0.6413]
[1748061630365,0.7819,2557.2,2557.1,0.78192]
[1748061630753,0.7819,2557.2,2557.1,2.14512]
[1748061634069,34.1779,2557.2,2557.1,2.14512]
[1748061634771,34.1779,2557.2,2557.1,1.3632]
[1748061634965,34.1779,2557.2,2557.1,2.14512]
[1748061635867,0.7819,2557.2,2557.1,2.14512]
[1748061636069,34.1789,2557.2,2557.1,2.14512]
[1748061636271,34.1789,2557.2,2557.1,1.3632]
[1748061637770,0.7819,2557.2,2557.1,1.3632]
[1748061637971,34.1789,2557.2,2557.1,1.3632]
[1748061641168,34.1789,2557.2,2557.1,2.14512]
[1748061641562,34.1789,2557.2,2557.1,1.3632]
[1748061641971,0.7819,2557.2,2557.1,1.3632]
[1748061642272,34.1789,2557.2,2557.1,2.14512]
[1748061642770,33.397,2557.2,2557.1,2.14512]
[1748061643465,34.17888,2557.2,2557.1,1.3632]
[1748061643672,33.397,2557.2,2557.1,2.14512]
[1748061643979,33.397,2557.2,2557.1,3.61526373]
[1748061644472,0.78186,2557.3,2557.2,0.78188]
[1748061644666,33.99385,2557.3,2557.2,1.4035]
[1748061644862,0.78188,2557.2,2557.1,1.47014373]
[1748061645071,0.78188,2557.2,2557.1,2.87364373]
[1748061645262,0.78188,2557.2,2557.1,1.4035]
[1748061646969,0.78188,2557.2,2557.1,2.18542]
[1748061647170,0.78188,2557.2,2557.1,1.4035]
[1748061647772,0.78188,2557.2,2557.1,2.87438077]
[1748061648571,0.78188,2557.2,2557.1,3.65630077]
[1748061648774,0.78188,2557.2,2557.1,2.87438077]
[1748061649379,2.11458,2557.2,2557.1,2.87438077]
[1748061650579,2.11458,2557.2,2557.1,3.65630077]
[1748061651267,2.11458,2557.2,2557.1,2.18542]
[1748061651772,2.11458,2557.2,2557.1,1.4035]
[1748061654482,2.11458,2557.2,2557.1,2.18542]
[1748061654683,33.212,2557.2,2557.1,2.18542]
[1748061655484,33.99388,2557.2,2557.1,2.87512719]
[1748061656182,0.78188,2557.2,2557.1,2.87512719]
[1748061656382,33.99388,2557.2,2557.1,2.87512719]
[1748061661082,35.34678,2557.2,2557.1,1.47162719]
[1748061662889,0.78195,2557.0,2556.9,2.13247]
[1748061663689,0.78195,2557.0,2556.9,1.3505]
[1748061663985,0.78195,2557.0,2556.9,2.82255481]
[1748061664886,0.78195,2557.0,2556.9,3.60453481]
[1748061666787,0.78195,2557.0,2556.9,2.82255481]
[1748061667594,2.18095,2557.0,2556.9,2.82255481]
[1748061668691,2.18095,2557.0,2556.9,1.3505]
[1748061671896,0.78198,2556.9,2556.8,0.00586797]
[1748061672092,2.06148,2556.9,2556.8,0.00586797]
[1748061672783,33.99498,2556.9,2556.8,0.00586797]
[1748061677893,37.20278,2556.9,2556.8,0.00586797]
[1748061679094,38.54428,2556.9,2556.8,0.00586797]
[1748061688101,5.33128,2556.9,2556.8,0.00586797]
[1748061688301,37.04878,2556.9,2556.8,0.00586797]
[1748061689410,19.44778,2556.9,2556.8,0.00586797]
[1748061689609,37.04878,2556.9,2556.8,0.00586797]
[1748061694112,33.84098,2556.9,2556.8,0.00586797]
[1748061694317,37.04878,2556.9,2556.8,0.00586797]
[1748061696919,19.44778,2556.9,2556.8,0.00586797]
[1748061697118,37.04878,2556.9,2556.8,0.00586797]
[1748061704235,3.98978,2556.9,2556.8,0.00586797]
[1748061704429,37.04878,2556.9,2556.8,0.00586797]
[1748061704931,3.98978,2556.9,2556.8,0.00586797]
[1748061705227,36.91878,2556.9,2556.8,0.00586797]
[1748061708534,3.98978,2556.9,2556.8,0.00586797]
[1748061708725,36.91978,2556.9,2556.8,0.00586797]
[1748061708926,37.5708206,2556.9,2556.8,0.00586797]
[1748061709727,4.6408206,2556.9,2556.8,0.00586797]
[1748061709927,37.5708206,2556.9,2556.8,0.00586797]
[1748061710934,4.6408206,2556.9,2556.8,0.00586797]
[1748061711135,37.5708206,2556.9,2556.8,0.00586797]
[1748061713432,37.5718206,2556.9,2556.8,0.00586797]
[1748061717638,37.89365902,2556.9,2556.8,0.00586797]
[1748061718842,4.96265902,2556.9,2556.8,0.00586797]
[1748061719035,37.89465902,2556.9,2556.8,0.00586797]
[1748061722540,36.92178,2556.9,2556.8,0.00586797]
[1748061723141,36.92178,2556.9,2556.8,1.31686797]
[1748061724330,3.98978,2556.9,2556.8,1.31686797]
[1748061724537,36.1398,2556.9,2556.8,2.09887797]
[1748061725042,36.92178,2556.9,2556.8,1.31686797]
[1748061729634,3.98978,2556.9,2556.8,1.31686797]
[1748061729840,36.92078,2556.9,2556.8,1.31686797]
[1748061730143,3.98978,2556.9,2556.8,1.31686797]
[1748061730345,19.31878,2556.9,2556.8,2.09887797]
[1748061730545,36.92078,2556.9,2556.8,1.31686797]
[1748061730739,3.98978,2556.9,2556.8,1.31686797]
[1748061730939,36.91978,2556.9,2556.8,1.31686797]
[1748061731139,36.91978,2556.9,2556.8,2.09887797]
[1748061731341,0.65394181,2557.0,2556.9,0.78198]
[1748061731547,18.25594181,2557.0,2556.9,2.10188]
[1748061731748,0.65394181,2557.0,2556.9,2.10188]
[1748061731948,15.98194181,2557.1,2557.0,0.78195]
[1748061732140,33.58394181,2557.1,2557.0,2.10825]
[1748061732640,18.25594181,2557.1,2557.0,2.10825]
[1748061733142,0.65394181,2557.1,2557.0,7.10825]
[1748061733444,0.65394181,2557.1,2557.0,8.57848878]
[1748061736349,18.38283,2557.4,2557.3,0.78185]
[1748061736350,0.78183,2557.4,2557.3,0.78185]
[1748061736649,15.297,2557.5,2557.4,0.78182]
[1748061736954,1.43571181,2557.6,2557.5,0.78179]
[1748061737151,19.03670181,2557.6,2557.5,0.78179]
[1748061737354,0.65394181,2557.6,2557.5,9.30816962]
[1748061738745,0.98091271,2557.8,2557.7,0.78173]
[1748061739347,0.98091271,2557.8,2557.7,2.17983]
[1748061740453,0.98091271,2557.8,2557.7,7.17983]
[1748061740756,1.2928016,2558.0,2557.9,0.78167]
[1748061741057,1.2928016,2558.0,2557.9,3.98947]
[1748061741242,4.00566,2558.8,2557.9,3.98947]
[1748061741243,17.22742973,2558.9,2557.9,23.5008]
[1748061741554,17.22742973,2558.9,2558.6,0.78144]
[1748061741555,18.37841,2558.8,2558.6,0.78144]
[1748061741847,0.78141,2558.8,2558.7,2.6528]
[1748061742053,18.37841,2558.8,2558.7,2.6528]
[1748061742752,18.3784,2558.8,2558.7,2.6528]
[1748061743057,0.78138,2558.9,2558.7,3.43423]
[1748061743259,18.50466797,2559.0,2558.9,0.78137]
[1748061743450,36.09866797,2559.0,2558.9,0.78137]
[1748061743857,3.21366797,2559.0,2558.9,0.78137]
[1748061745461,0.00586797,2559.0,2558.9,0.78137]
[1748061745958,1.0754172,2560.0,2558.9,20.288]
[1748061746163,1.0754172,2560.0,2559.8,3.2078]
[1748061746355,0.78106,2559.9,2559.8,3.2078]
[1748061746751,0.78115,2559.6,2559.5,3.2078]
[1748061747149,0.78121,2559.4,2559.3,1.3979]
[1748061747558,0.78121,2559.4,2559.3,0.7041]
[1748061747763,0.78126,2559.3,2559.1,0.78128]
[1748061748061,2.18979,2559.5,2559.3,0.78123]
[1748061748258,1.4086,2559.5,2559.3,3.2078]
[1748061748557,0.78117,2559.6,2559.4,0.7812]
[1748061748765,0.78117,2559.6,2559.4,1.426]
[1748061749262,0.78117,2559.6,2559.5,1.3187]
[1748061751466,16.6946,2559.7,2559.6,0.78115]
[1748061751771,15.286,2559.7,2559.6,3.2078]
[1748061751957,0.78115,2559.6,2559.5,1.3187]
[1748061752163,2.12085,2559.6,2559.5,1.3187]
[1748061753264,0.78121,2559.5,2559.3,3.98902]
[1748061753569,2.13941,2559.5,2559.3,5.33372]
[1748061753967,0.78121,2559.4,2559.3,4.5525]
[1748061754567,2.1394,2559.5,2559.3,5.33373]
[1748061755365,0.7019,2559.4,2559.3,5.33373]
[1748061755563,2.84131,2559.4,2559.3,3.2078]
[1748061755767,3.49251,2559.4,2559.3,3.2078]
[1748061758164,0.78131,2559.1,2559.0,3.2078]
[1748061758764,1.3512,2559.1,2559.0,3.2078]
[1748061759070,2.13251,2559.1,2559.0,3.2078]
[1748061763370,19.71651,2559.1,2559.0,3.2078]
[1748061764676,19.71751,2559.1,2559.0,3.2078]
[1748061765365,35.12551,2559.1,2559.0,3.2078]
[1748061765569,17.54051,2559.1,2559.0,3.2078]
[1748061765770,35.12551,2559.1,2559.0,3.2078]
[1748061767487,35.12551,2559.1,2559.0,3.98914]
[1748061767784,33.77431,2559.1,2559.0,3.98914]
[1748061768183,16.18931,2559.1,2559.0,3.98914]
[1748061768378,15.408,2559.1,2559.0,3.98914]
[1748061768778,15.408,2559.1,2559.0,3.2078]
[1748061768779,16.18931,2559.1,2559.0,3.2078]
[1748061769184,16.18931,2559.1,2559.0,4.66971326]
[1748061769485,17.56351,2559.1,2559.0,4.66971326]
[1748061769788,17.56351,2559.1,2559.0,6.06311326]
[1748061774090,17.56351,2559.1,2559.0,6.84445326]
[1748061776097,17.56351,2559.1,2559.0,6.06311326]
[1748061777188,17.56351,2559.1,2559.0,4.66971326]
[1748061777984,0.7814,2558.8,2558.7,1.16103179]
[1748061778386,0.78149,2558.5,2558.4,2.1491446]
[1748061778586,36.98029,2558.5,2558.4,0.00586797]
[1748061778984,36.98029,2558.5,2558.0,3.76793497]
[1748061778985,0.78161,2558.1,2558.0,1.16173497]
[1748061779189,19.39741,2558.1,2558.0,1.16173497]
[1748061780098,0.78167,2557.9,2557.8,0.00586797]
[1748061780292,18.36667,2557.9,2557.8,0.00586797]
[1748061780900,19.72587,2557.9,2557.8,0.00586797]
[1748061783091,20.36587,2557.9,2557.8,0.00586797]
[1748061783890,2.78087,2557.9,2557.8,0.00586797]
[1748061784099,18.36867,2557.9,2557.8,0.00586797]
[1748061785697,0.78167,2557.9,2557.8,0.00586797]
[1748061785897,33.78167,2557.9,2557.8,0.00586797]
[1748061788796,35.05517,2557.9,2557.8,0.00586797]
[1748061790094,35.05517,2557.9,2557.1,3.2078]
[1748061790095,34.2735,2557.9,2557.1,3.2078]
[1748061790293,0.78188,2557.2,2557.1,3.98971]
[1748061791393,0.78188,2557.2,2557.1,3.2078]
[1748061792498,0.78188,2557.2,2557.1,3.9039]
[1748061794098,0.78188,2557.2,2557.1,4.68582]
[1748061794492,17.591,2557.3,2557.2,0.78188]
[1748061795495,17.591,2557.3,2557.1,4.68579]
[1748061795496,0.78188,2557.2,2557.1,4.68579]
[1748061796493,18.37287,2557.3,2557.2,0.78188]
[1748061796788,0.78188,2557.2,2557.1,4.68578]
[1748061798297,18.37286,2557.3,2557.2,0.78188]
[1748061799197,0.78188,2557.2,2557.1,3.9039]
[1748061801390,0.78188,2557.2,2557.1,3.2078]
[1748061801597,2.83008,2557.2,2557.1,3.2078]
[1748061802902,1.46638,2557.2,2557.1,3.2078]
[1748061803203,33.74188,2557.2,2557.1,3.2078]
[1748061804100,33.74188,2557.2,2557.1,3.98972]
[1748061804799,16.14588,2557.2,2557.1,3.98972]
[1748061805002,33.74188,2557.2,2557.1,3.98972]
[1748061805305,33.74188,2557.2,2557.1,5.35442]
[1748061809602,33.74188,2557.2,2557.1,6.80226989]
[1748061810408,33.74188,2557.2,2557.1,3.59446989]
[1748061810610,33.74288,2557.2,2557.1,6.80226989]
[1748061811002,32.961,2557.2,2557.1,6.80226989]
[1748061811610,33.74288,2557.2,2557.1,6.80226989]
[1748061814310,32.961,2557.2,2557.1,6.80226989]
[1748061814713,15.364,2557.2,2557.1,6.80226989]
[1748061815013,32.961,2557.2,2557.1,6.80226989]
[1748061815306,3.2078,2558.0,2557.1,11.02034989]
[1748061815512,15.365,2557.6,2557.5,0.78179]
[1748061816108,16.14676,2557.6,2557.5,0.78179]
[1748061816311,16.14676,2557.6,2557.5,3.40179]
[1748061816707,16.14676,2557.6,2557.5,2.62]
[1748061818314,18.37776,2557.6,2557.5,2.62]
[1748061818612,18.37776,2557.6,2557.5,3.40179]
[1748061818917,15.364,2557.7,2557.6,0.78176]
[1748061819114,16.14573,2557.7,2557.6,2.16506]
[1748061819310,32.96,2557.7,2557.6,2.16506]
[1748061821419,33.74173,2557.7,2557.6,2.16506]
[1748061821607,15.364,2557.7,2557.6,2.16506]
[1748061821811,32.96,2557.7,2557.6,2.16506]
[1748061822011,15.364,2557.7,2557.6,2.16506]
[1748061822314,32.96,2557.7,2557.6,2.16506]
[1748061822519,3.2078,2558.0,2557.6,1.3833]
[1748061822715,15.364,2558.0,2557.9,0.78167]
[1748061823110,32.96,2558.0,2557.9,0.78167]
[1748061823320,0.78167,2557.9,2557.8,1.3565]
[1748061823817,0.78167,2557.9,2557.8,2.13818]
[1748061824314,0.78167,2557.9,2557.8,1.3565]
[1748061824514,0.7817,2557.8,2557.7,3.2078]
[1748061824717,1.4228,2557.8,2557.7,3.2078]
[1748061825617,1.4228,2557.8,2557.7,3.98953]
[1748061825813,33.7397,2557.8,2557.7,3.98953]
[1748061826714,0.7817,2557.8,2557.7,3.98953]
[1748061826910,17.595,2557.8,2557.7,3.98953]
[1748061827216,18.3767,2557.8,2557.7,3.2078]
[1748061827418,18.3767,2557.8,2557.7,3.98953]
[1748061828120,18.3767,2557.8,2557.7,3.2078]
[1748061828715,19.7034,2557.8,2557.7,3.2078]
[1748061829118,19.7034,2557.8,2557.7,4.5236]
[1748061831119,19.7034,2557.8,2557.7,3.2078]
[1748061831320,20.406,2557.8,2557.7,3.2078]
[1748061835828,33.6777,2557.8,2557.7,3.2078]
[1748061836229,33.6777,2557.8,2557.7,3.98953]
[1748061836426,33.6777,2557.8,2557.7,3.2078]
[1748061837124,33.6777,2557.8,2557.7,4.6016]
[1748061837529,15.302,2557.8,2557.7,5.38333]
[1748061837722,32.896,2557.8,2557.7,5.38333]
[1748061838419,33.6777,2557.8,2557.7,5.38333]
[1748061838926,33.6777,2557.8,2557.7,4.6016]
[1748061840329,33.6777,2557.8,2557.7,5.38333]
[1748061840929,0.7817,2557.8,2557.7,5.38333]
[1748061841129,33.6777,2557.8,2557.7,5.38333]
[1748061842429,33.6777,2557.8,2557.7,2.17553]
[1748061843131,33.6777,2557.8,2557.7,1.3938]
[1748061843332,32.896,2557.8,2557.4,3.2078]